[Event "1st Serbian League 2022"]
[Site "Vrnjacka Banja"]
[Date "2022.09.28"]
[Round "9.6"]
[White "Laketic, Gojko"]
[Black "Radovanovic, Mihajlo"]
[Result "1/2-1/2"]
[ECO "E92"]
[WhiteElo "2255"]
[BlackElo "2438"]
[Annotator "TA"]
[PlyCount "98"]
[EventDate "2022.09.20"]
[EventType "team-tourn"]
[EventCountry "SRB"]
[SourceTitle "playchess.com"]
[Source "ChessBase"]
[SourceQuality "1"]
[TimeControl "40/5400+30:1800+30"]

{[%evp 22,98,21,18,17,16,12,12,28,16,29,24,26,30,33,35,40,39,42,44,53,9,21,4,7,1,0,1,5,8,0,0,27,0,0,0,0,0,0,0,0,0,0,-13,0,-19,0,0,0,0,44,43,206,148,158,0,0,0,0,0,0,0,0,0,0,0,0,0,0,0,0,0,0,0,0,0,0,0,0]} 1. d4 {[%emt 0:01:58]} Nf6 {[%emt 0:00:24]} 2. c4 {[%emt 0:01:12]} g6 {[%emt 0:00:06]} 3. Nc3 {[%emt 0:00:05]} Bg7 {[%emt 0:00:04]} 4. e4 {[%emt 0:00:05]} d6 {[%emt 0:00:03]} 5. Nf3 {[%emt 0:00:02]} O-O {[%emt 0:00:05]} 6. Be2 {[%emt 0:00:02]} e5 {[%emt 0:00:23]} 7. d5 {[%emt 0:02:41]} a5 {[%emt 0:01:39]} 8. Bg5 {[%emt 0:00:31]} h6 {[%emt 0:00:46]} 9. Bh4 {[%emt 0:00:05]} Na6 {[%emt 0:00:44]} 10. Nd2 {[%emt 0:00:22]} Bd7 {[%emt 0:02:12]} 11. Rb1 {[%emt 0:03:22]} Qe8 {[%emt 0:01:27]} 12. O-O {[%emt 0:01:08]} Nh7 {[%emt 0:01:22] E92: King's Indian: Classical: 6 Be2 e5: 7 dxe5, 7 Be3 and Petrosian System without 7...Nbd7.} 13. b3 {[%emt 0:01:24]} h5 {[%emt 0:00:37]} 14. f3 {[%emt 0:00:13]} Bf6 {[%emt 0:02:17]} 15. Bf2 {[%emt 0:06:02]} Qe7 {[%emt 0:01:36]} 16. a3 {[%emt 0:00:23][%cal Ba2a3,Ba3b4,Bb4b5][%mdl 32]} h4 {[%emt 0:01:47]} 17. b4 {[%emt 0:01:55]} axb4 {[%emt 0:00:16]} 18. axb4 {[%emt 0:00:02]} Rfb8 {[%emt 0:00:45]} 19. Qc2 {[%emt 0:14:41]} Bg5 {[%emt 0:01:04]} 20. Rfd1 {[%emt 0:00:46]} Nf6 {[%emt 0:05:50]} 21. b5 {[%emt 0:19:35]} Nc5 {[%emt 0:00:35]} 22. Nb3 {[%emt 0:02:10]} b6 {[%emt 0:04:23]} 23. Ra1 {[%emt 0:00:35]} Nxb3 {[%emt 0:06:01]} 24. Qxb3 {[%emt 0:00:05]} Nh5 {[%emt 0:00:08]} 25. Bf1 {[%emt 0:00:57]} f5 {[%emt 0:17:57]} 26. Ra6 {[%emt 0:05:57]} Rf8 {[%emt 0:04:20]} 27. Rxa8 {[%emt 0:09:11]} (27. Rda1 $5 {[%cal Ra6a8]} Rac8 28. R1a2 $14) 27... Rxa8 {[%emt 0:00:05] [#]} 28. Qb2 $146 {[%emt 0:00:06]} ({Predecessor:} 28. h3 Bf4 29. Ne2 Bg5 30. Nc3 Ng3 31. Bd3 Bf4 32. Ne2 Nxe2+ 33. Bxe2 Qg5 34. Kh1 Kg7 35. Qc3 Ra5 36. Ra1 Bd2 37. Qb2 Be3 38. Bxe3 Qxe3 39. Rxa5 bxa5 40. Qc2 a4 {0-1 (38) Hoeck,R (2064)-Klundt,K (2378) Frankfurt 2008}) 28... Qd8 {[%emt 0:10:15]} 29. Ra1 {[%emt 0:00:41]} Rxa1 {[%emt 0:00:30]} 30. Qxa1 {[%emt 0:00:01]} Bd2 {[%emt 0:00:08]} 31. exf5 {[%emt 0:05:22]} gxf5 {[%emt 0:00:08]} 32. Nd1 {[%emt 0:00:55]} Kf7 {[%emt 0:01:36][%cal Oh4h3]} 33. Qb2 {[%emt 0:04:41]} Bf4 {[%emt 0:02:02]} 34. Qa3 {[%emt 0:02:15]} Ng3 {[%emt 0:04:02]} 35. Bd3 {[%emt 0:00:30]} ({Of course not} 35. hxg3 hxg3 36. Bxg3 Bxg3 $17) 35... Qg5 {[%emt 0:10:54][%cal Oe5e4]} 36. Qa7 {[%emt 0:06:53]} h3 $2 {[%emt 0:06:14]} ({Better is} 36... Qe7 $14) 37. hxg3 {[%emt 0:03:23]} Bxg3 {[%emt 0:00:53]} 38. Bf1 $2 {[%emt 0:01:32]} ({Don't take} 38. Qxc7 $6 Bh2+ 39. Kf1 hxg2+ 40. Ke2 Qe7 $14) (38. gxh3 $16 e4 39. Qxc7) 38... hxg2 $11 {[%emt 0:08:23] The position is equal.} 39. Bxg2 {[%emt 0:00:31] [#] Black must now prevent Bxb6.} Bxf2+ {[%emt 0:00:31]} 40. Nxf2 {[%emt 0:00:51]} Qc1+ {[%emt 0:00:09]} 41. Bf1 {[%emt 0:30:52] aiming for Nh3.} Qg5+ {[%emt 0:30:04]} 42. Bg2 {[%emt 0:03:07]} Qc1+ {[%emt 0:00:06]} 43. Bf1 {[%emt 0:00:20] [#] And now Nh3 would win.} Qg5+ {[%emt 0:00:04]} 44. Bg2 {[%emt 0:00:00] Hoping for Nh3.} Qc1+ {[%emt 0:00:00]} 45. Bf1 {[%emt 0:00:00]} Qg5+ {[%emt 0:00:00]} 46. Bg2 {[%emt 0:00:00] Strongly threatening Nh3.} Qc1+ {[%emt 0:00:00]} 47. Bf1 {[%emt 0:00:00]} Qg5+ {[%emt 0:00:00]} 48. Bg2 {[%emt 0:00:00]} Qc1+ {[%emt 0:00:00]} 49. Bf1 {[%emt 0:00:00] Threatens to win with Nh3.} Qg5+ {[%emt 0:00:00] Weighted Error Value: White=0.14 (very precise) /Black=0.14 (very precise)} 1/2-1/2

[Event "1st Serbian League 2022"]
[Site "Vrnjacka Banja"]
[Date "2022.09.28"]
[Round "9.7"]
[White "Tadic, Stefan"]
[Black "Yilmazyerli, Mert"]
[Result "1/2-1/2"]
[ECO "D02"]
[WhiteElo "2318"]
[BlackElo "2533"]
[Annotator "TA"]
[PlyCount "60"]
[EventDate "2022.09.20"]
[EventType "team-tourn"]
[EventCountry "SRB"]
[SourceTitle "playchess.com"]
[Source "ChessBase"]
[SourceQuality "1"]
[TimeControl "40/5400+30:1800+30"]

{[%evp 11,60,-1,0,0,0,0,0,0,0,0,0,-19,-10,6,11,20,24,9,14,13,14,0,10,0,10,16,15,0,0,0,13,10,18,6,38,9,8,14,12,11,21,0,10,0,0,0,0,0,0,0,0]} 1. d4 {[%emt 0:00:05]} Nf6 {[%emt 0:04:35]} 2. Nf3 {[%emt 0:00:10]} e6 {[%emt 0:01:04]} 3. Bf4 {[%emt 0:00:06]} d5 {[%emt 0:00:05]} 4. e3 {[%emt 0:00:05]} Bd6 {[%emt 0:00:05]} 5. Nbd2 {[%emt 0:00:05]} O-O {[%emt 0:00:27]} 6. Ne5 {[%emt 0:00:04]} c5 {[%emt 0:00:36]} 7. c3 {[%emt 0:00:07] D02: 1 d4 d5 2 Nf3 sidelines, including 2...Nf6 3 g3 and 2...Nf6 3 Bf4.} Nc6 {[%emt 0:01:21] 7...Qc7 injects fresh life into this line.} 8. Bd3 {[%emt 0:01:38]} Qc7 {[%emt 0:00:25][%cal Rc6e5]} 9. Ndf3 {[%emt 0:01:20]} Ne7 {[%emt 0:02:11]} 10. O-O {[%emt 0:04:46]} b6 {[%emt 0:00:51] [#]} 11. Re1 $146 {[%emt 0:07:09]} ({Predecessor:} 11. Rc1 Bb7 12. Nd2 Nc6 13. Nxc6 Bxf4 14. exf4 Bxc6 15. Qf3 Rac8 16. Qe3 Bb7 17. Nf3 {½-½ (27) Bluebaum,M (2674)-Huschenbeth,N (2592) Reykjavik 2021}) 11... Bb7 {[%emt 0:02:48]} 12. Nd2 {[%emt 0:06:08]} Ng6 {[%emt 0:06:47]} 13. Nxg6 {[%emt 0:13:44]} hxg6 {[%emt 0:00:33]} 14. Bxd6 {[%emt 0:00:11]} Qxd6 {[%emt 1:15:42]} 15. Qf3 {[%emt 0:03:17]} Rfe8 {[%emt 0:00:00][%cal Bf8e8,Be8e7,Be7c7,Bc7c5][%mdl 32]} 16. a4 {[%emt 0:21:50]} a5 {[%emt 0:00:00]} 17. Bb5 {[%emt 0:01:05]} Re7 {[%emt 0:00:00]} 18. Rad1 {[%emt 0:01:34]} Qc7 {[%emt 0:00:00]} 19. Qg3 {[%emt 0:01:39]} Qxg3 {[%emt 0:00:00]} 20. hxg3 {[%emt 0:00:24]} Rc7 {[%emt 0:00:00]} 21. dxc5 {[%emt 0:04:55]} Rxc5 {[%emt 0:00:00]} 22. e4 {[%emt 0:05:01]} Ba6 {[%emt 0:00:00]} 23. Nb3 {[%emt 0:05:17]} Rcc8 {[%emt 0:00:00] The position is equal.} 24. Bxa6 {[%emt 0:05:47]} Rxa6 {[%emt 0:00:00]} 25. exd5 {[%emt 0:00:06]} Nxd5 {[%emt 0:00:00]} 26. Re4 {[%emt 0:00:53]} Raa8 {[%emt 0:00:00]} 27. f3 {[%emt 0:01:49]} b5 {[%emt 0:00:00]} 28. axb5 {[%emt 0:08:10] [#] Black must now prevent Ra1.} a4 {[%emt 0:00:00]} 29. Nd4 {[%emt 0:01:36] Strongly threatening Nc6.} a3 {[%emt 0:00:00]} 30. Rb1 {[%emt 0:00:52] And now Nc6 would win.} axb2 {[%emt 0:00:00] A balanced but interesting game.  Weighted Error Value: White=0.05 (flawless) /Black=0.04 (flawless)} 1/2-1/2

[Event "1st Serbian League 2022"]
[Site "Vrnjacka Banja"]
[Date "2022.09.28"]
[Round "9.9"]
[White "Sarenac, Ivan"]
[Black "Arsovic, Goran"]
[Result "1-0"]
[ECO "B90"]
[WhiteElo "2402"]
[BlackElo "2362"]
[Annotator "TA"]
[PlyCount "154"]
[EventDate "2022.09.20"]
[EventType "team-tourn"]
[EventCountry "SRB"]
[SourceTitle "playchess.com"]
[Source "ChessBase"]
[SourceQuality "1"]
[TimeControl "40/5400+30:1800+30"]

{[%evp 13,154,20,11,-17,20,12,23,-8,5,0,0,0,67,42,43,33,36,1,7,-23,-29,0,54,54,54,54,54,81,107,121,124,62,62,39,32,12,17,0,20,-5,0,-18,0,-54,-2,-20,-19,-22,0,0,0,0,0,0,0,0,18,13,25,23,84,75,222,215,204,179,235,112,145,131,148,68,68,68,68,68,68,68,67,15,31,13,30,18,32,10,10,10,10,10,10,10,11,11,11,11,29,0,0,0,0,0,0,0,0,0,0,0,0,0,0,0,0,0,0,0,0,0,0,0,14,8,8,30,14,14,15,8,31,0,8,8,31,8,8,8,8,8,8,15,31,8,29985]} 1. e4 {[%emt 0:00:03]} c5 {[%emt 0:00:16]} 2. Nf3 {[%emt 0:00:10]} d6 {[%emt 0:00:11]} 3. d4 {[%emt 0:00:06]} cxd4 {[%emt 0:00:06]} 4. Nxd4 {[%emt 0:00:05]} Nf6 {[%emt 0:00:13]} 5. Nc3 {[%emt 0:00:09]} a6 {[%emt 0:00:07]} 6. Be3 {[%emt 0:00:11]} e5 {[%emt 0:00:17]} 7. Nf3 {[%emt 0:00:14]} Be7 {[%emt 0:01:16]} 8. h3 {[%emt 0:00:15] B90: Sicilian Najdorf: Unusual White 6th moves, 6 Be3 Ng4 and 6 Be3 e5.} Nc6 {[%emt 0:06:08] 8...Be6 gains popularity.} 9. g4 {[%emt 0:00:48]} h6 {[%emt 0:00:29] [#]} 10. Rg1 $146 {[%emt 0:03:58] White has an edge.} (10. Nd5 $5 {[%cal Re3b6]} O-O 11. c4 $11 (11. Bb6 Qd7 $11)) ({Predecessor:} 10. Nd5 Nxd5 11. exd5 Qa5+ 12. c3 Nb8 13. Bg2 Qc7 14. Qe2 f5 15. gxf5 Bxf5 16. Nd2 {½-½ (48) Poli,G (2465)-Fajs,B (2449) ICCF email 2010}) 10... Qc7 {[%emt 0:12:59]} 11. g5 {[%emt 0:03:05]} hxg5 {[%emt 0:00:59]} 12. Nxg5 {[%emt 0:00:09]} Nd8 {[%emt 0:02:49]} ({Black should try} 12... Be6 $11) 13. Qf3 {[%emt 0:07:46] White is more active.} Be6 {[%emt 0:06:50]} 14. O-O-O {[%emt 0:12:23]} Rc8 {[%emt 0:07:33][%cal Oe6a2]} 15. Nxe6 {[%emt 0:13:23]} Nxe6 {[%emt 0:01:32]} 16. Bd3 {[%emt 0:00:14]} Qa5 {[%emt 0:09:20]} 17. Bd2 {[%emt 0:11:57]} Qc5 {[%emt 0:09:12]} (17... Rxc3 $11 18. Bxc3 Qxa2) 18. Kb1 $14 {[%emt 0:02:44]} g6 {[%emt 0:07:07]} 19. Nd5 {[%emt 0:11:12]} Nxd5 {[%emt 0:00:38]} 20. exd5 {[%emt 0:00:04]} Nd4 {[%emt 0:03:21]} 21. Qg2 {[%emt 0:04:20]} ({Resist} 21. Qg4 Rc7 $14) 21... Nf5 {[%emt 0:16:42] [#]} 22. Bc1 {[%emt 0:06:27]} (22. f4 $1 $16) 22... Rh5 {[%emt 0:02:50]} 23. Qf1 {[%emt 0:01:11]} Bh4 {[%emt 0:01:33]} 24. Rg2 {[%emt 0:03:49][%cal Bg1g2,Bg2h2,Bh2h1,Bh1e1][%mdl 32]} Kf8 {[%emt 0:01:54]} 25. c3 {[%emt 0:00:48]} Re8 {[%emt 0:00:23]} 26. Qe2 {[%emt 0:06:32]} Bf6 {[%emt 0:01:23]} 27. Rh2 {[%emt 0:02:44]} e4 {[%emt 0:02:49]} 28. Bc2 {[%emt 0:01:47]} ({Better is} 28. Bxe4 $11 Rh4 29. f3) 28... Rh4 {[%emt 0:00:57]} (28... Qb6 $15) 29. Rhh1 {[%emt 0:02:17]} Re5 {[%emt 0:01:07]} 30. Rhe1 {[%emt 0:01:27]} b5 {[%emt 0:01:10]} (30... Rxd5 31. Rxd5 Qxd5 32. Bxe4 $16) (30... Rxh3 $5 {[%cal Rh3h2]} 31. Bxe4 Rh2 $15) 31. Qf1 {[%emt 0:01:15]} (31. f4 $5 {[%cal Rf4e5]} Rxd5 32. Rxd5 (32. Qxe4 Rxd1 33. Rxd1 Rxh3 $11) 32... Qxd5 33. Bxe4 $11) 31... Rxd5 {[%emt 0:00:48]} 32. Rxd5 {[%emt 0:01:04]} Qxd5 {[%emt 0:00:02]} 33. Qg2 {[%emt 0:00:06]} Qc5 {[%emt 0:01:25]} 34. Rxe4 {[%emt 0:02:29]} Rxe4 {[%emt 0:00:11]} 35. Bxe4 {[%emt 0:00:33]} Qe5 {[%emt 0:00:36]} 36. Qf3 {[%emt 0:00:28]} Nh4 {[%emt 0:01:19] [#]} (36... Bh4 $11 {remains equal.}) 37. Qd3 $1 $16 {[%emt 0:01:25]} Bg5 {[%emt 0:00:32]} (37... Nf5 $16 {was called for.}) 38. Bxg5 $18 {[%emt 0:00:18]} Qxg5 {[%emt 0:00:01]} 39. Qxd6+ {[%emt 0:00:06][%mdl 4096] Endgame KQB-KQN} Kg8 {[%emt 0:00:19]} (39... Kg7 $142) 40. Qd4 {[%emt 0:01:48]} ({Don't take} 40. Qxa6 $6 Qg1+ 41. Kc2 Qxf2+ 42. Kb3 Qf1 43. Qa8+ Kh7) (40. a3 $18) 40... Qg1+ {[%emt 0:00:34]} 41. Kc2 {[%emt 0:02:02] aiming for Qd8+.} Qf1 {[%emt 0:04:30]} 42. Qe3 {[%emt 0:07:30] Prevents Qe2+.} (42. a4 $16) 42... Ng2 $14 {[%emt 0:01:57]} 43. Bxg2 {[%emt 0:08:06]} Qxg2 {[%emt 0:00:05] KQ-KQ} 44. b3 {[%emt 0:00:04]} Qh1 {[%emt 0:02:34]} 45. Kb2 {[%emt 0:03:36] Prevents Qa1+.} Qd5 {[%emt 0:00:27] Against c4} 46. h4 {[%emt 0:05:12]} (46. Qd4 $14 Qe6 47. Qe3) 46... Qc6 {[%emt 0:08:14]} 47. Qd4 {[%emt 0:00:55]} Qe6 {[%emt 0:02:45]} 48. Qd8+ {[%emt 0:01:19]} Kh7 {[%emt 0:00:41]} 49. Ka3 {[%emt 0:00:23]} Qe2 $1 {[%emt 0:01:53]} 50. Qf6 {[%emt 0:01:09][%csl LRa6,LRf7]} Kg8 {[%emt 0:00:09]} 51. f4 {[%emt 0:01:35]} Qf2 {[%emt 0:03:22]} 52. Qd8+ {[%emt 0:01:21]} Kh7 {[%emt 0:00:03]} 53. Qc7 {[%emt 0:00:12]} Kg7 {[%emt 0:03:16]} 54. Qe5+ {[%emt 0:00:53]} Kg8 {[%emt 0:00:06]} 55. c4 {[%emt 0:01:31]} Qd2 {[%emt 0:01:07]} 56. Qd5 {[%emt 0:01:19]} Qxf4 {[%emt 0:02:09]} 57. Qa8+ {[%emt 0:00:01]} Kg7 {[%emt 0:00:25]} 58. Qxa6 {[%emt 0:00:03]} bxc4 {[%emt 0:00:45]} 59. Qxc4 {[%emt 0:00:32]} Qd6+ {[%emt 0:00:08]} 60. b4 {[%emt 0:00:06]} f5 {[%emt 0:00:16]} 61. Qc3+ {[%emt 0:00:59]} Kh7 {[%emt 0:00:18]} 62. Kb2 {[%emt 0:00:35]} f4 {[%emt 0:02:42]} 63. b5 {[%emt 0:00:08]} Qf8 {[%emt 0:01:28]} 64. b6 {[%emt 0:01:05]} f3 {[%emt 0:00:04]} 65. b7 {[%emt 0:00:15]} f2 {[%emt 0:00:27]} 66. Qc7+ {[%emt 0:00:06]} Qg7+ {[%emt 0:01:42]} 67. Qxg7+ {[%emt 0:00:06]} Kxg7 {[%emt 0:00:00]} 68. b8=Q {[%emt 0:03:37] White threatens Qa7+ and mate.} f1=Q $11 {[%emt 0:04:59] KQ-KQ} 69. Qe5+ {[%emt 0:00:00]} Kf7 {[%emt 0:00:00]} 70. Qd5+ {[%emt 0:00:00]} Kf8 {[%emt 0:00:00]} 71. Qe4 {[%emt 0:00:00]} Qb5+ {[%emt 0:00:00]} 72. Kc3 {[%emt 0:00:00] Qb4+ would kill now.} Kg7 {[%emt 0:00:17]} 73. Qe7+ {[%emt 0:00:07]} Kg8 {[%emt 0:00:36]} 74. Qd8+ {[%emt 0:00:18]} Kh7 {[%emt 0:00:08]} 75. Qc7+ {[%emt 0:00:11]} Kh8 {[%emt 0:00:37]} 76. Qc4 {[%emt 0:01:28]} Qa5+ {[%emt 0:00:20]} 77. Kc2 {[%emt 0:00:17] Intending Qc3+ and mate.} (77. Kd3 $5 {[%cal Rc4c3]} Qf5+ 78. Ke2 $16) 77... Qa3 $2 {[%emt 0:00:57][%mdl 8192] Weighted Error Value: White=0.19 (very precise) /Black=0.16 (very precise)} (77... Qf5+ $11 78. Kc1 g5) 1-0

[Event "1st Serbian League 2022"]
[Site "Vrnjacka Banja"]
[Date "2022.09.28"]
[Round "9.10"]
[White "Ristic, Nenad"]
[Black "Arsovic, Zoran"]
[Result "1/2-1/2"]
[ECO "B22"]
[WhiteElo "2267"]
[BlackElo "2362"]
[Annotator "TA"]
[PlyCount "41"]
[EventDate "2022.09.20"]
[EventType "team-tourn"]
[EventCountry "SRB"]
[SourceTitle "playchess.com"]
[Source "ChessBase"]
[SourceQuality "1"]
[TimeControl "40/5400+30:1800+30"]

{[%evp 19,41,16,28,17,14,21,21,22,29,26,40,0,0,0,0,0,8,9,16,25,34,36,41,32]} 1. e4 {[%emt 0:00:05]} c5 {[%emt 0:00:19]} 2. Nf3 {[%emt 0:00:24]} e6 {[%emt 0:00:34]} 3. c3 {[%emt 0:00:26]} d5 {[%emt 0:00:57]} 4. exd5 {[%emt 0:00:37]} Qxd5 {[%emt 0:00:52]} 5. d4 {[%emt 0:01:08]} Nf6 {[%emt 0:01:01]} 6. Be2 {[%emt 0:03:39]} Nc6 {[%emt 0:02:39]} 7. O-O {[%emt 0:01:39]} Be7 {[%emt 0:01:43]} 8. c4 {[%emt 0:02:59]} Qd8 {[%emt 0:02:40]} 9. dxc5 {[%emt 0:00:43]} Qxd1 {[%emt 0:05:10]} 10. Rxd1 {[%emt 0:00:18]} Ne4 {[%emt 0:00:28] has lost popularity (10...Bxc5).} 11. Be3 {[%emt 0:02:57] B22: Sicilian: 2 c3.} Bxc5 {[%emt 0:04:17]} 12. Nbd2 {[%emt 0:02:19]} (12. Nd4 $5 {[%cal Rd4c6]} Bd7 13. Nc2 $11) 12... Bxe3 {[%emt 0:03:22]} 13. Nxe4 {[%emt 0:00:15] The position is equal.} Bf4 {[%emt 0:01:21]} 14. g3 {[%emt 0:01:51]} (14. c5 {seems wilder.} Ke7 15. g3 Bc7 16. Nd6) 14... Bc7 {[%emt 0:04:28]} 15. Nd6+ {[%emt 0:00:35]} Bxd6 {[%emt 0:02:21]} 16. Rxd6 {[%emt 0:00:11]} Ke7 {[%emt 0:01:20]} 17. c5 {[%emt 0:01:34]} f6 {[%emt 0:03:21] [#]} 18. Nd4 $146 {[%emt 0:03:13]} ({Predecessor:} 18. Bb5 Rd8 19. Bxc6 bxc6 20. Rad1 Bd7 21. Nd4 e5 22. Nb3 a5 23. a4 Ra7 24. f4 exf4 25. gxf4 {½-½ (35) Ristic,N (2450)-Arsovic,Z (2441) Vrnjacka Banja 2005}) 18... Nxd4 {[%emt 0:02:31]} 19. Rxd4 {[%emt 0:00:15]} Bd7 {[%emt 0:00:54]} 20. Bf3 {[%emt 0:01:34]} Rab8 {[%emt 0:01:52]} 21. Rad1 {[%emt 0:01:22] Weighted Error Value: White=0.05 (flawless) /Black=0.03 (flawless)} 1/2-1/2

[Event "1st Serbian League 2022"]
[Site "Vrnjacka Banja"]
[Date "2022.09.28"]
[Round "9.11"]
[White "Radusinovic, Lazar"]
[Black "Rajkovic, Dusan"]
[Result "1-0"]
[ECO "A46"]
[WhiteElo "2308"]
[BlackElo "2246"]
[Annotator "TA"]
[PlyCount "67"]
[EventDate "2022.09.20"]
[EventType "team-tourn"]
[EventCountry "SRB"]
[SourceTitle "playchess.com"]
[Source "ChessBase"]
[SourceQuality "1"]
[TimeControl "40/5400+30:1800+30"]

{[%evp 9,67,20,16,4,20,13,13,15,0,5,62,0,0,-2,0,-16,-9,-15,-14,-13,-14,-24,-22,-29,-1,-75,-89,-82,-73,-69,-25,-32,-34,-72,-83,-56,-56,-61,-82,-78,-58,-111,-98,-104,-97,-167,-158,-200,-135,-127,-124,-141,0,0,0,-168,0,-162,29987,29988]} 1. d4 {[%emt 0:00:08]} Nf6 {[%emt 0:00:18]} 2. Nf3 {[%emt 0:00:06]} e6 {[%emt 0:01:12]} 3. g3 {[%emt 0:00:07]} b5 {[%emt 0:00:52][%cal Bb7b5,Bb5b4][%mdl 32]} 4. Bg2 {[%emt 0:00:08]} Bb7 {[%emt 0:00:01][%cal Bc8b7,Bb7d5,Bd5e4][%mdl 32]} 5. O-O {[%emt 0:00:14]} c5 {[%emt 0:01:02]} 6. Na3 {[%emt 0:00:09][%cal Bb1a3,Ba3c4,Bc4e3][%mdl 32] A46: 1 d4 Nf6 2 Nf3 e6: Torre, London and Colle Systems.} b4 {[%emt 0:11:07]} 7. Nc4 {[%emt 0:00:29]} Bd5 {[%emt 0:03:16]} 8. Ne3 {[%emt 0:04:31] The position is equal.} Be4 {[%emt 0:00:13] [#]} 9. a3 $146 {[%emt 0:02:05]} ({Predecessor:} 9. c4 cxd4 10. Nxd4 Be7 11. b3 O-O 12. Bb2 Bxg2 13. Kxg2 d5 14. cxd5 Nxd5 15. Nxd5 Qxd5+ {1-0 (53) Raptis,N (2240)-He,D (2061) Redmond 2016}) 9... Nc6 {[%emt 0:07:39]} ({Black should play} 9... a5 $11) 10. dxc5 {[%emt 0:04:52]} (10. axb4 $14 cxb4 11. Ne5) 10... Bxc5 $11 {[%emt 0:01:39]} 11. axb4 {[%emt 0:01:13]} Nxb4 {[%emt 0:02:38]} 12. Ng5 {[%emt 0:16:19]} Bxg2 {[%emt 0:01:07]} 13. Kxg2 {[%emt 0:00:04]} a5 {[%emt 0:01:20]} 14. c3 {[%emt 0:17:43]} Nc6 {[%emt 0:00:32]} 15. Qc2 {[%emt 0:02:05]} d5 {[%emt 0:03:15]} 16. Qa4 {[%emt 0:07:35]} Rc8 {[%emt 0:07:07]} 17. b4 {[%emt 0:08:24]} (17. Ng4 $11) 17... axb4 $17 {[%emt 0:04:50]} 18. cxb4 {[%emt 0:00:06]} Bxb4 {[%emt 0:03:48]} 19. Bb2 {[%emt 0:02:00] Hoping for Rfc1.} Be7 {[%emt 0:02:30]} (19... O-O $5 {[%cal Rd5d4]}) 20. Rfc1 {[%emt 0:03:35]} Qd7 {[%emt 0:00:10]} 21. Ng4 {[%emt 0:00:59]} Nxg4 {[%emt 0:07:01]} 22. Qxg4 {[%emt 0:00:41][%cal Og5f7] aiming for Nxf7!} h5 $1 {[%emt 0:10:44]} 23. Qf4 {[%emt 0:01:08]} f6 $36 {[%emt 0:02:17][%mdl 2048] Black is really pushing.} 24. Nf3 {[%emt 0:00:59][%cal Bg5f3,Bf3h4,Bh4f5,Bf5e7][%mdl 32]} e5 {[%emt 0:02:59]} 25. Qd2 {[%emt 0:00:51]} (25. Bxe5 $1 $15 fxe5 26. Nxe5 Nxe5 27. Rxc8+ Qxc8 28. Qxe5) 25... O-O {[%emt 0:02:31]} 26. Nh4 {[%emt 0:05:32]} Rfd8 {[%emt 0:01:13]} 27. e4 {[%emt 0:02:50]} (27. Qd3 $17) 27... dxe4 $19 {[%emt 0:01:48][%cal Bd5e4,Be4e3][%mdl 32]} 28. Qe2 {[%emt 0:01:31]} Qd2 {[%emt 0:03:21]} 29. Qxh5 {[%emt 0:03:12][%cal Oh5g4] [#]} e3 $1 {[%emt 0:04:20]} ({But not} 29... Qxb2 $6 30. Nf5 Bc5 31. Nh6+ gxh6 32. Qg6+ Kh8 33. Qxf6+ Kh7 34. Qf7+ Kh8 35. Qf6+ Kh7 36. Qf7+ Kh8 37. Qf6+ $11) 30. Nf5 {[%emt 0:01:04][%cal Oc1c6] [#] And now Rxc6! would win.} Qxf2+ {[%emt 0:00:30]} ({Don't play} 30... Qxb2 $6 31. Qg6 Bf8 32. Nh6+ Kh8 33. Nf7+ Kg8 34. Nh6+ Kh8 35. Nf7+ Kg8 36. Nh6+ $11) ({Black should try} 30... Bf8 $1 $17 31. Qg6 exf2) 31. Kh3 $11 {[%emt 0:00:08][%cal Oc1c6] Rxc6! is the strong threat.} Rd2 {[%emt 0:00:44]} 32. Qg6 $2 {[%emt 0:00:10]} Qxh2+ {[%emt 0:00:33]} ({Weaker is} 32... Bf8 33. Nh6+ Kh8 34. Nf7+ Kg8 35. Nh6+ Kh8 36. Nf7+ Kg8 37. Nh6+ $11) 33. Kg4 {[%emt 0:00:05][%csl Gf5][%cal Rg6g7] The board is on fire.} Qh7 {[%emt 0:01:08][%mdl 8192]} (33... Bf8 $19 34. Bc3 Rd7) 34. Nxe7+ {[%emt 0:00:44] Weighted Error Value: White=0.23 (precise) /Black=0.42} 1-0